fUST/lending_fUST_20240503
["ID","MTS","AMOUNT","RATE_DAILY","PERIOD"]
[325268914,1714675649496,2973.83019052,0.00020133,2]
[325268915,1714675651884,1924.12289641,0.00020136,2]
[325268916,1714675652971,730.93144096,0.000138,2]
[325268917,1714675660632,2834.81223177,0.00020131,2]
[325268918,1714675666681,10598.10785005,0.00020133,2]
[325268920,1714675678689,10648.63733253,0.00020133,2]
[325268925,1714675714860,219.78478858,0.00019729,2]
[325268927,1714675758106,-1622.34234505,0.00020213,2]
[325268928,1714675758128,-2627.42239968,0.00020214,2]
[325268929,1714675758148,-596.88,0.00020215,3]
[325268930,1714675758168,-298.44,0.00020215,3]
[325268931,1714675758188,-895.36,0.00020215,3]
[325268932,1714675758208,-1313.56424433,0.00020222,2]
[325268933,1714675758228,-284.0133868,0.00020222,2]
[325268934,1714675758247,-522.27929623,0.00020222,2]
[325268935,1714675758267,-730.93144096,0.00020223,2]
[325268936,1714675758286,-5462.53125909,0.00020223,2]
[325268937,1714675758305,-239.99639101,0.00020223,2]
[325268938,1714675758324,-354.64628884,0.00020224,2]
[325268939,1714675758342,-551.84117837,0.00020224,2]
[325268940,1714675758361,-59236.59789083,0.00020224,2]
[325268941,1714675758381,-1193.77,0.00020224,3]
[325268942,1714675758402,-46186.45867881,0.00020225,2]
[325268943,1714675766268,-15678.27203672,0.00020213,2]
[325268944,1714675766288,-21261.34146753,0.00020225,2]
[325268945,1714675766309,-1048.18690356,0.00020228,2]
[325268946,1714675766329,-317.42949698,0.00020228,2]
[325268947,1714675766348,-307.84522161,0.00020228,2]
[325268948,1714675766369,-154.65974855,0.00020234,2]
[325268949,1714675766391,-212.29957186,0.00020234,2]
[325268950,1714675766410,-1259.41388857,0.00020234,2]
[325268951,1714675766431,-555.81013752,0.00020329,2]
[325268952,1714675766452,-162.95115582,0.00020329,2]
[325268953,1714675766472,-361.72258076,0.00020341,2]
[325268954,1714675766491,-202.91498895,0.00020454,2]
[325268955,1714675766511,-474.94336072,0.00020462,2]
[325268956,1714675766532,-365.73734918,0.00020567,2]
[325268957,1714675766553,-164.02329265,0.00020568,2]
[325268958,1714675766575,-165.99571683,0.00020681,2]
[325268959,1714675766596,-5998.06874937,0.00020699,2]
[325268960,1714675766618,-184.25518477,0.0002079,2]
[325268961,1714675766642,-243.43625468,0.00020791,2]
[325268962,1714675766663,-155.17295597,0.00020791,2]
[325268963,1714675766683,-10266.74188111,0.00020791,2]
[325268964,1714675766709,-1066.65808195,0.00020909,2]
[325268965,1714675766730,-186.27090551,0.00020909,2]
[325268966,1714675766753,-1907.45188905,0.00020911,2]
[325268967,1714675766774,-583.46076683,0.00020912,2]
[325268968,1714675766795,-155.18475814,0.00020912,2]
[325268969,1714675766814,-165.9957168,0.00021087,2]
[325268970,1714675766836,-165.9957168,0.00021494,2]
[325268971,1714675766856,-1193.76,0.00021585,3]
[325268972,1714675766875,-596.88,0.00021585,3]
[325268973,1714675766898,-2387.54,0.00021594,3]
[325268974,1714675766917,-2834.81223175,0.00021848,2]
[325268975,1714675766937,-165.9957168,0.000219,2]
[325268976,1714675766956,-166.666666,0.00021918,2]
[325268977,1714675766976,-10000.0,0.00021918,2]
[325268978,1714675766995,-159.27807126,0.00022,2]
[325268979,1714675767018,-166.666666,0.00022431,2]
[325268980,1714675767037,-166.666666,0.00022944,2]
[325268981,1714675767057,-1371.27709871,0.00023,2]
[325268982,1714675767076,-689.85270916,0.00023408,2]
[325268983,1714675767096,-166.666666,0.00023456,2]
[325268984,1714675767117,-2834.81223175,0.00023565,2]
[325268985,1714675767141,-6688.63439931,0.000239,2]
[325268986,1714675767161,-166.666666,0.00023969,2]
[325268987,1714675767181,-693.7301281,0.00024,2]
[325268988,1714675767202,-166.666666,0.00024482,2]
[325268989,1714675767222,-623.49263546,0.00024578,2]
[325268990,1714675767244,-200.0,0.00024658,2]
[325268991,1714675767265,-380.0,0.00024658,2]
[325268992,1714675767285,-154.65974855,0.00025,2]
[325268993,1714675767311,-2834.81223175,0.00025281,2]
[325268994,1714675767335,-620.17463177,0.00025807,2]
[325268995,1714675767355,-2834.81223175,0.00026998,2]
[325268996,1714675767385,-8532.81812051,0.00027,2]
[325268997,1714675767411,-9380.01685072,0.00027,2]
[325268998,1714675767434,-620.00873159,0.00027098,2]
[325268999,1714675767456,-160.0,0.0002738,2]
[325269000,1714675767478,-320.0,0.00027928,2]
[325269001,1714675767499,-221.01865842,0.00028,2]
[325269002,1714675767522,-620.00043658,0.00028453,2]
[325269003,1714675767545,-321.73741113,0.00028476,2]
[325269004,1714675767574,-319.619952,0.00028493,2]
[325269005,1714675767595,-169.239922,0.00028493,2]
[325269006,1714675767616,-6688.63439931,0.000289,2]
[325269007,1714675767640,-154.65974855,0.00029,2]
[325269008,1714675767660,-1537.598212,0.00029723,2]
[325269009,1714675767681,-1188.2,0.00029749,3]
[325269010,1714675767702,-620.00002183,0.00029875,2]
[325269011,1714675767724,-154.65974855,0.0003,4]
[325269012,1714675767748,-2809.67167873,0.0003,7]
[325269013,1714675767768,-245.0,0.0003,2]
[325269014,1714675767788,-2973.83019051,0.00030745,2]
[325269015,1714675767807,-6101.17577585,0.00031,4]
[325269016,1714675767828,-620.00000109,0.00031369,2]
[325269017,1714675767848,-1188.2,0.00031851,5]
[325269018,1714675767972,-447.32492958,0.00032,4]
[325269019,1714675767998,-999.0,0.00032876,7]
[325269020,1714675768025,-999.0,0.00032876,10]
[325269021,1714675768046,-999.0,0.00032876,13]
[325269022,1714675768066,-999.0,0.00032876,16]
[325269023,1714675768086,-999.0,0.00032876,19]
[325269024,1714675768106,-620.00000005,0.00032937,2]
[325269025,1714675768126,-1188.2,0.00033954,5]
[325269026,1714675768147,-466.5950793,0.00034,4]
[325269027,1714675768168,-319.619952,0.00034203,2]
[325269028,1714675768187,-620.0,0.00034584,2]
[325269029,1714675768207,-697.54441592,0.00034647,4]
[325269030,1714675768226,-154.99360919,0.00034647,4]
[325269031,1714675768247,-197.83067739,0.0003465,4]
[325269032,1714675768268,-1017.30764189,0.0003465,4]
[325269033,1714675768287,-191.62094884,0.0003465,4]
[325269034,1714675768308,-999.0,0.00034999,22]
[325269035,1714675768328,-9773.65621712,0.00035,4]
[325269036,1714675768348,-463.02233791,0.00035,10]
[325269037,1714675768368,-1616.1467,0.00035,2]
[325269038,1714675768391,-154.76784823,0.00035,4]
[325269039,1714675768410,-1159.01222463,0.00035,4]
[325269040,1714675768430,-598.15577715,0.00035,2]
[325269041,1714675768450,-154.65974855,0.00035,4]
[325269042,1714675768470,-154.65974855,0.00035,2]
[325269043,1714675768490,-259.075815,0.00035616,120]
[325269044,1714675768510,-17645.65,0.00035616,3]
[325269045,1714675768530,-14704.71,0.00035616,3]
[325269046,1714675768551,-12253.93,0.00035616,3]
[325269047,1714675768572,-55555.0,0.000359,5]
[325269048,1714675768594,-320.75262842,0.00035999,25]
[325269049,1714675768665,-678.24737158,0.00035999,25]
[325269050,1714675768686,-20076.38822635,0.00036,5]
[325269051,1714675768739,245.0,0.00033,2]
[325269052,1714675768767,10211.6,0.0003099,3]
[325269053,1714675768826,166.666666,0.00021918,2]
[325269054,1714675768855,245.0,0.00036,2]
[325269055,1714675768879,166.666666,0.00022431,2]
[325269056,1714675769109,166.666666,0.00022944,2]
[325269057,1714675769343,166.666666,0.00023456,2]
[325269058,1714675769581,166.666666,0.00023969,2]
[325269059,1714675769796,166.666666,0.00024482,2]
[325269060,1714675770564,1313.56424433,0.00020913,2]
[325269061,1714675772566,375.96627399,0.00020913,2]
[325269062,1714675772886,465.81211884,0.00020913,2]
[325269063,1714675773254,775.88123273,0.00020913,2]
[325269064,1714675773286,5462.53125909,0.00020913,2]
[325269065,1714675774055,378.05590456,0.00020913,2]
[325269066,1714675774846,59236.59789083,0.00020913,2]
[325269067,1714675775814,239.99639101,0.00020912,2]
[325269068,1714675776905,178.81789831,0.00020912,2]
[325269069,1714675777398,2627.42239968,0.00020913,2]
[325269070,1714675777492,729.83656353,0.00020913,2]
[325269071,1714675778648,240.98641478,0.00020913,2]
[325269072,1714675779671,12493.11276439,0.00020913,2]
[325269073,1714675779691,1692.16237572,0.00020913,2]
[325269169,1714675834696,-160.453388,0.00020367,2]
[325269170,1714675834706,-228.9266511,0.00020911,2]
[325269173,1714675834716,-644.6393609,0.00020911,2]
[325269175,1714675834729,-0.27586865,0.00020911,2]
[325269177,1714675834741,-3595.64862626,0.00020912,2]
[325269179,1714675834751,-2898.85412461,0.00020912,2]
[325269181,1714675834762,-2397.64924423,0.00020912,2]
[325269182,1714675834772,-2542.69799275,0.00020912,2]
[325269184,1714675834782,-42093.91345339,0.00020913,2]
[325269186,1714675834795,-798.57148941,0.00020913,2]
[325269189,1714675834806,-1586.21617874,0.00020913,2]
[325269191,1714675834820,-1490.62996169,0.00020913,2]
[325269193,1714675834831,-5855.85402826,0.00020913,2]
[325269562,1714675839056,-1437.33989474,0.00020913,2]
[325269564,1714675839068,-14304.32829983,0.00020913,2]
[325269566,1714675839077,-154.65974855,0.00022,2]
[325269568,1714675839087,-159.27807126,0.00022,2]
[325269571,1714675839096,-714.43536843,0.00023,2]
[325269574,1714675839105,-693.7301281,0.00024,2]
[325269590,1714675839246,-302.20904234,0.00025,2]
[325269592,1714675839256,-587.78448955,0.00025,2]
[325269594,1714675839265,-9380.01685072,0.00027,2]
[325269596,1714675839274,-8532.81812051,0.00027,2]
[325269598,1714675839284,-221.01865842,0.00028,2]
[325269600,1714675839293,-154.67518212,0.00029,2]
[325269602,1714675839303,-1966.77017511,0.0003,7]
[325269604,1714675839312,-154.67518212,0.0003,4]
[325269606,1714675839321,-891.1,0.0003009,3]
[325269608,1714675839331,-6101.17577585,0.00031,4]
[325269610,1714675839340,-447.32492958,0.00032,4]
[325269612,1714675839349,-891.1,0.00032161,5]
[325269614,1714675839359,-999.0,0.00032876,7]
[325269616,1714675839368,-999.0,0.00032876,10]
[325269618,1714675839378,-999.0,0.00032876,13]
[325269620,1714675839387,-999.0,0.00032876,16]
[325269622,1714675839396,-999.0,0.00032876,19]
[325269624,1714675839405,-466.5950793,0.00034,4]
[325269626,1714675839415,-891.1,0.00034233,5]
[325269628,1714675839424,-999.0,0.00034649,22]
[325269630,1714675839434,-598.15577715,0.00035,2]
[325269632,1714675839443,-1159.01222463,0.00035,4]
[325269634,1714675839452,-154.65974855,0.00035,4]
[325269636,1714675839461,-213.66751521,0.00035,2]
[325269638,1714675839471,-999.0,0.00035999,25]
[325269640,1714675839480,-891.1,0.00036304,7]
[325269642,1714675839489,-620.0,0.00036313,2]
[325269644,1714675839498,-10666.82031837,0.00037,5]
[325269646,1714675839508,-1979.66547476,0.00037,2]
[325269648,1714675839519,-620.0,0.00038129,2]
[325269650,1714675839528,-891.1,0.00038376,14]
[325269652,1714675839537,-189.0935612,0.00038795,2]
[325269654,1714675839547,-250.01749403,0.00038795,2]
[325269656,1714675839556,-2001.76488059,0.000395,2]
[325269658,1714675839565,-493.0,0.00039782,2]
[325269660,1714675839574,-150.0,0.00039782,2]
[325269662,1714675839584,-266.25154773,0.000399,31]
[325269664,1714675839593,-266.25154773,0.000399,31]
[325269666,1714675839603,-266.25154773,0.000399,31]
[325269668,1714675839613,-319.619952,0.00039913,2]
[325269670,1714675839622,-439.44895094,0.0004,15]
[325269672,1714675839631,-4256.07544867,0.0004,4]
[325269674,1714675839642,-2729.9056,0.0004,4]
[325269676,1714675839651,-620.0,0.00040036,2]
[325269678,1714675839660,-8509.67,0.00040189,3]
[325269680,1714675839669,-999.0,0.00040198,28]
[325269682,1714675839679,-4411.399658,0.00040199,14]
[325269684,1714675839690,-608.89253022,0.00040263,4]
[325269686,1714675839699,-155795.57523249,0.00040266,25]
[325269688,1714675839709,-891.1,0.00040447,14]
[325269690,1714675839720,-9539.8608,0.00040498,30]
[325269692,1714675839732,-169.239922,0.00040548,2]
[325269694,1714675839741,-165.61076386,0.0004082,2]
[325269696,1714675839751,-3882.85068389,0.00040899,35]
[325269697,1714675839761,-165.61076384,0.00040907,2]
[325269699,1714675839771,-3882.85068385,0.00040909,35]
[325269701,1714675839780,-3882.85068385,0.0004092,35]
[325269703,1714675839789,-3882.85068385,0.0004093,35]
[325269705,1714675839799,-3882.85068385,0.00040941,35]
[325269707,1714675839809,-3882.85068385,0.00040951,35]
[325269708,1714675839820,-999.0,0.00040961,31]
[325269710,1714675839830,-3882.85068385,0.00040962,35]
[325269712,1714675839839,-3882.85068385,0.00040972,35]
[325269714,1714675839848,-3882.85068385,0.00040983,35]
[325269716,1714675839857,-154.98418026,0.00040993,4]
[325269718,1714675839867,-3882.85068385,0.00040993,35]
[325269719,1714675839879,-3050.66911823,0.00040993,4]
[325269720,1714675839888,-811.95170485,0.00040993,39]
[325269721,1714675839897,-156.61767288,0.00040993,4]
[325269722,1714675839907,-165.61076384,0.00040994,2]
[325269723,1714675839917,-999.0,0.00040994,34]
[325269724,1714675839926,-961.45811859,0.00040994,4]
[325269725,1714675839937,-1678.22103741,0.00040999,4]
[325269726,1714675839946,-252.82355724,0.00041,2]
[325269727,1714675839955,-209.90396595,0.00041089,3]
[325269728,1714675839965,-999.0,0.00041092,37]
[325269729,1714675839974,-999.0,0.00041092,40]
[325269730,1714675839983,-1000.0,0.00041093,3]
[325269731,1714675839992,-2587.66874346,0.00041093,4]
[325269732,1714675840002,-172.28962255,0.00041093,4]
[325269733,1714675840012,-797.63007274,0.00041093,4]
[325269734,1714675840021,-302.92751816,0.00041093,4]
[325269736,1714675840030,-3403.74180722,0.00041093,4]
[325269738,1714675840040,-308.79421087,0.00041093,4]
[325269740,1714675840052,-154.87304917,0.00041093,4]
[325269742,1714675840061,-344.56485752,0.00041093,4]
[325269744,1714675840071,-233.56017247,0.00041093,4]
[325269746,1714675840080,-157.93832552,0.00041093,4]
[325269747,1714675840089,-665.36306353,0.00041093,2]
[325269749,1714675840099,-309.53574583,0.00041093,4]
[325269751,1714675840108,-246.87634581,0.00041093,4]
[325269753,1714675840118,-200.49461752,0.00041093,4]
[325269755,1714675840127,-1584.45455669,0.00041093,7]
[325269756,1714675840137,-310.3316594,0.00041093,7]
[325269757,1714675840146,-409.22868854,0.00041093,4]
[325269758,1714675840155,-2457.03232127,0.00041093,4]
[325269759,1714675840165,-605.82997984,0.00041093,4]
[325269760,1714675840174,-379.24165137,0.00041093,4]
[325269761,1714675840184,-155.01755094,0.00041093,4]
[325269762,1714675840193,-159.61899264,0.00041093,4]
[325269763,1714675840202,-198.57887077,0.00041093,4]
[325269764,1714675840212,-449.81678992,0.00041093,4]
[325269765,1714675840221,-30264.6274235,0.00041093,2]
[325269766,1714675840230,-2399.60143739,0.00041093,4]
[325269767,1714675840239,-1576.98678225,0.00041093,4]
[325269768,1714675840249,-154.8793102,0.00041093,2]
[325269769,1714675840259,-302.15066765,0.00041093,4]
[325269770,1714675840269,-193.72430508,0.00041093,4]
[325269771,1714675840279,-6736.34825683,0.00041093,4]
[325269772,1714675840288,-278.27641352,0.00041093,2]
[325269773,1714675840298,-1890.08486794,0.00041093,4]
[325269774,1714675840307,-565.13944552,0.00041093,4]
[325269775,1714675840317,-5827.32576169,0.00041093,4]
[325269776,1714675840327,-700.07693533,0.00041093,4]
[325269777,1714675840336,-699.12,0.00041093,43]
[325269778,1714675840346,-160.0,0.00041094,30]
[325269779,1714675840355,-8278.68998967,0.00041094,2]
[325269780,1714675840365,-276.39943109,0.00041094,2]
[325269781,1714675840374,-1000.0,0.00041094,2]
[325269782,1714675840383,-1000.0,0.00041094,2]
[325269783,1714675840393,-1000.0,0.00041094,2]
[325269784,1714675840402,-1000.0,0.00041094,2]
[325269785,1714675840412,-1000.0,0.00041094,2]
[325269786,1714675840421,-1000.0,0.00041094,2]
[325269787,1714675840430,-1000.0,0.00041094,2]
[325269788,1714675840440,-1000.0,0.00041094,2]
[325269789,1714675840449,-3000.0,0.00041094,10]
[325269790,1714675840458,-3000.0,0.00041094,10]
[325269791,1714675840468,-3000.0,0.00041094,10]
[325269792,1714675840477,-3000.0,0.00041094,10]
[325269793,1714675840486,-3000.0,0.00041094,10]
[325269794,1714675840496,-3000.0,0.00041094,10]
[325269799,1714675840505,-3000.0,0.00041094,10]
[325269802,1714675840514,-3000.0,0.00041094,10]
[325269805,1714675840524,-500.0,0.00041095,7]
[325269808,1714675840533,-500.0,0.00041095,7]
[325269812,1714675840542,-500.0,0.00041095,7]
[325269816,1714675840551,-500.66474189,0.00041095,2]
[325269819,1714675840561,-503.02963425,0.00041095,2]
[325269822,1714675840570,-500.0,0.00041095,7]
[325269824,1714675840579,-500.0,0.00041095,7]
[325269827,1714675840589,-612.26284867,0.00041095,7]
[325269830,1714675840598,-500.0,0.00041095,7]
[325269833,1714675840607,-500.0,0.00041095,7]
[325269836,1714675840616,-418.55128161,0.00041095,7]
[325269839,1714675840626,-500.0,0.00041095,7]
[325269842,1714675840636,-500.0,0.00041095,7]
[325269845,1714675840645,-626.22634825,0.00041095,7]
[325269848,1714675840655,-500.0,0.00041095,2]
[325269851,1714675840664,-500.0,0.00041095,7]
[325269854,1714675840674,-500.0,0.00041095,7]
[325269857,1714675840684,-500.0,0.00041095,7]
[325269860,1714675840693,-500.0,0.00041095,7]
[325269863,1714675840703,-500.0,0.00041095,7]
[325269866,1714675840712,-500.0,0.00041095,7]
[325269869,1714675840723,-500.0,0.00041095,7]
[325269872,1714675840732,-500.0,0.00041095,7]
[325269875,1714675840744,-500.0,0.00041095,7]
[325269878,1714675840753,-500.0,0.00041095,7]
[325269881,1714675840763,-500.0,0.00041095,7]
[325269883,1714675840772,-501.23310096,0.00041095,7]
[325269887,1714675840783,-500.0,0.00041095,7]
[325269890,1714675840793,-500.0,0.00041095,7]
[325269893,1714675840802,-500.0,0.00041095,7]
[325269896,1714675840812,-500.0,0.00041095,7]
[325269899,1714675840823,-500.0,0.00041095,7]
[325269901,1714675840833,-500.0,0.00041095,7]
[325269903,1714675840842,-500.0,0.00041095,7]
[325269905,1714675840851,-500.0,0.00041095,7]
[325269906,1714675840861,-500.0,0.00041095,7]
[325269908,1714675840876,-500.0,0.00041095,7]
[325269911,1714675840885,-500.0,0.00041095,7]
[325269914,1714675840895,-500.0,0.00041095,7]
[325269916,1714675840904,-500.0,0.00041095,7]
[325269918,1714675840913,-500.0,0.00041095,7]
[325269920,1714675840922,-500.0,0.00041095,7]
[325269922,1714675840932,-500.0,0.00041095,7]
[325269924,1714675840943,-500.0,0.00041095,7]
[325269926,1714675840952,-168.83582934,0.00041095,7]
[325269928,1714675840961,-500.0,0.00041095,7]
[325269930,1714675840971,-500.0,0.00041095,7]
[325269931,1714675840981,-500.0,0.00041095,7]
[325269933,1714675840991,-500.0,0.00041095,7]
[325269935,1714675841000,-500.0,0.00041095,7]
[325269937,1714675841010,-500.0,0.00041095,7]
[325269938,1714675841020,-501.20724763,0.00041095,7]
[325269939,1714675841029,-500.0,0.00041095,7]
[325269940,1714675841042,-500.0,0.00041095,7]
[325269941,1714675841052,-500.0,0.00041095,7]
[325269942,1714675841062,-500.0,0.00041095,7]
[325269943,1714675841071,-152.65888081,0.00041095,7]
[325269944,1714675841080,-500.0,0.00041095,7]
[325269945,1714675841090,-800.0,0.00041095,120]
[325269946,1714675841099,-500.0,0.00041095,7]
[325269947,1714675841108,-500.0,0.00041095,7]
[325269948,1714675841117,-437.71081319,0.00041095,7]
[325269949,1714675841127,-500.0,0.00041095,7]
[325269950,1714675841136,-500.0,0.00041095,7]
[325269951,1714675841146,-500.0,0.00041095,7]
[325269952,1714675841156,-501.18357816,0.00041095,7]
[325269953,1714675841165,-500.0,0.00041095,7]
[325269954,1714675841175,-500.0,0.00041095,7]
[325269955,1714675841185,-500.0,0.00041095,7]
[325269956,1714675841194,-542.83670997,0.00041095,7]
[325269957,1714675841203,-500.0,0.00041095,7]
[325269963,1714675841297,-500.0,0.00041095,7]
[325269964,1714675841308,-575.5951722,0.00041095,7]
[325269965,1714675841318,-482.83123782,0.00041095,7]
[325269966,1714675841327,-500.0,0.00041095,7]
[325269967,1714675841337,-500.0,0.00041095,7]
[325269968,1714675841347,-503.18365329,0.00041095,7]
[325269969,1714675841356,-500.0,0.00041095,30]
[325269970,1714675841366,-500.0,0.00041095,7]
[325269971,1714675841375,-500.0,0.00041095,7]
[325269972,1714675841385,-500.0,0.00041095,7]
[325269973,1714675841395,-500.0,0.00041095,7]
[325269974,1714675841405,-500.0,0.00041095,7]
[325269975,1714675841414,-500.0,0.00041095,7]
[325269976,1714675841424,-500.0,0.00041095,7]
[325269977,1714675841433,-500.0,0.00041095,7]
[325269978,1714675841443,-500.0,0.00041095,7]
[325269979,1714675841452,-528.91,0.00041095,7]
[325269980,1714675841462,-500.0,0.00041095,7]
[325269981,1714675841476,-500.0,0.00041095,7]
[325269982,1714675841486,-500.0,0.00041095,7]
[325269983,1714675841496,-500.0,0.00041095,7]
[325269984,1714675841507,-500.0,0.00041095,7]
[325269986,1714675841517,-500.0,0.00041095,7]
[325269987,1714675841526,-500.0,0.00041095,7]
[325269989,1714675841536,-500.0,0.00041095,7]
[325269991,1714675841546,-500.0,0.00041095,7]
[325269993,1714675841556,-500.0,0.00041095,7]
[325269995,1714675841565,-500.0,0.00041095,7]
[325269997,1714675841575,-500.0,0.00041095,7]
[325269999,1714675841584,-500.0,0.00041095,7]
[325270001,1714675841594,-500.0,0.00041095,7]
[325270003,1714675841606,-500.0,0.00041095,7]
[325270005,1714675841615,-500.0,0.00041095,7]
[325270007,1714675841625,-500.0,0.00041095,7]
[325270009,1714675841634,-500.0,0.00041095,7]
[325270011,1714675841644,-196.46473343,0.00041095,7]
[325270013,1714675841653,-511.62330444,0.00041095,7]
[325270015,1714675841662,-500.0,0.00041095,7]
[325270017,1714675841672,-201.85908529,0.00041095,7]
[325270019,1714675841681,-500.0,0.00041095,7]
[325270021,1714675841692,-559.246242,0.00041095,7]
[325270023,1714675841701,-500.0,0.00041095,7]
[325270025,1714675841710,-500.0,0.00041095,7]
[325270027,1714675841722,-500.0,0.00041095,7]
[325270029,1714675841731,-500.0,0.00041095,7]
[325270031,1714675841741,-500.0,0.00041095,7]
[325270032,1714675841752,-500.0,0.00041095,7]
[325270034,1714675841763,-247.85703584,0.00041095,7]
[325270036,1714675841772,-500.0,0.00041095,7]
[325270037,1714675841782,-500.0,0.00041095,7]
[325270038,1714675841792,-389.80788693,0.00041095,2]
[325270039,1714675841801,-500.0,0.00041095,7]
[325270040,1714675841811,-500.0,0.00041095,7]
[325270042,1714675841821,-500.0,0.00041095,7]
[325270044,1714675841831,-500.0,0.00041095,7]
[325270046,1714675841841,-500.0,0.00041095,7]
[325270047,1714675841850,-500.0,0.00041095,7]
[325270049,1714675841859,-500.0,0.00041095,7]
[325270051,1714675841868,-761.29,0.00041095,7]
[325270053,1714675841878,-500.0,0.00041095,7]
[325270055,1714675841888,-500.0,0.00041095,7]
[325270057,1714675841897,-500.0,0.00041095,7]
[325270058,1714675841906,-439.30510562,0.00041095,7]
[325270060,1714675841916,-500.0,0.00041095,7]
[325270062,1714675841926,-509.96904063,0.00041095,7]
[325270064,1714675841935,-500.0,0.00041095,7]
[325270066,1714675841944,-500.0,0.00041095,7]
[325270068,1714675841954,-500.0,0.00041095,7]
[325270069,1714675841963,-500.0,0.00041095,7]
[325270071,1714675841972,-500.0,0.00041095,7]
[325270073,1714675841981,-619.74279753,0.00041095,7]
[325270075,1714675841991,-500.0,0.00041095,7]
[325270077,1714675842000,-500.0,0.00041095,7]
[325270079,1714675842009,-500.0,0.00041095,7]
[325270081,1714675842019,-500.0,0.00041095,7]
[325270082,1714675842029,-500.0,0.00041095,7]
[325270084,1714675842039,-501.16189272,0.00041095,7]
[325270086,1714675842049,-500.0,0.00041095,7]
[325270088,1714675842059,-500.0,0.00041095,7]
[325270090,1714675842068,-500.0,0.00041095,7]
[325270092,1714675842077,-500.0,0.00041095,7]
[325270093,1714675842086,-500.0,0.00041095,7]
[325270095,1714675842095,-412.32849928,0.00041095,2]
[325270097,1714675842105,-500.04878138,0.00041095,7]
[325270099,1714675842115,-500.0,0.00041095,7]
[325270101,1714675842125,-314.27036028,0.00041095,7]
[325270103,1714675842134,-500.0,0.00041095,2]
[325270105,1714675842143,-500.0,0.00041095,7]
[325270106,1714675842153,-500.0,0.00041095,2]
[325270107,1714675842162,-500.0,0.00041095,7]
[325270108,1714675842172,-500.0,0.00041095,7]
[325270109,1714675842181,-500.0,0.00041095,2]
[325270110,1714675842191,-500.0,0.00041095,7]
[325270112,1714675842201,-500.0,0.00041095,7]
[325270114,1714675842210,-500.0,0.00041095,7]
[325270116,1714675842220,-534.85167002,0.00041095,7]
[325270118,1714675842229,-502.67087401,0.00041095,7]
[325270119,1714675842239,-500.0,0.00041095,7]
[325270121,1714675842248,-500.0,0.00041095,7]
[325270123,1714675842258,-500.0,0.00041095,2]
[325270125,1714675842267,-500.0,0.00041095,7]
[325270127,1714675842276,-500.0,0.00041095,7]
[325270129,1714675842286,-500.0,0.00041095,7]
[325270130,1714675842295,-500.0,0.00041095,7]
[325270132,1714675842305,-500.0,0.00041095,7]
[325270134,1714675842315,-500.0,0.00041095,7]
[325270136,1714675842324,-500.0,0.00041095,7]
[325270138,1714675842333,-500.0,0.00041095,7]
[325270140,1714675842343,-500.0,0.00041095,7]
[325270142,1714675842352,-500.0,0.00041095,7]
[325270143,1714675842362,-500.0,0.00041095,7]
[325270145,1714675842371,-500.0,0.00041095,7]
[325270147,1714675842381,-500.0,0.00041095,7]
[325270149,1714675842390,-500.0,0.00041095,7]
[325270151,1714675842400,-500.0,0.00041095,7]
[325270152,1714675842409,-500.0,0.00041095,7]
[325270153,1714675842418,-500.0,0.00041095,7]
[325270154,1714675842427,-500.0,0.00041095,7]
[325270155,1714675842438,-500.0,0.00041095,7]
[325270156,1714675842447,-500.0,0.00041095,7]
[325270157,1714675842457,-500.0,0.00041095,7]
[325270158,1714675842466,-500.0,0.00041095,7]